Cogmind - Beta 10.2 *** ADVENTURER MODE // 2021.01.14 @ 14:50:37 Player: Frosst Result: Destroyed by S-10 Pest with Light Assault Rifle Performance ------------- Evolutions (0) 0 Regions Visited (1) 200 Robots Destroyed (1) 5 Value Destroyed (16) 16 Prototype IDs (0) 0 Alien Tech Used (0) 0 Bonus (0) 0 TOTAL SCORE: 221 Bonus ------- None Cogmind --------- Core Integrity 0/250 Matter 201/300 Energy 100/100 System Corruption 0% Temperature Cool (0) Movement Core (50) Location -10/Materials Parts ------- > --- POWER (1) -------- (None) > --- PROPULSION (2) --- (None) > --- UTILITY (2) ------ (None) > --- WEAPON (2) ------- (None) > --- INVENTORY (4) ---- (None) Peak State ------------ > --- POWER ------------ (None) > --- PROPULSION ------- (None) > --- UTILITY ---------- Improved Terrain Scanner Field Recycling Unit > --- WEAPON ----------- Beam Rifle Beam Cannon > --- INVENTORY -------- (None) [Rating: 7] Favorites ----------- Power None Propulsion None Utility Field Recycling Unit Device Field Recycling Unit Weapon Beam Cannon Energy Gun Beam Rifle Energy Cannon Beam Cannon Build | -11 -10 ------- Run | Scr Mat Slots Evolved . | . . Power . | . . Propulsion . | . . Utility . | . . Weapon . | . . Parts Attached 4 | . 4 Power . | . . Engine . | . . Core . | . . Reactor . | . . Propulsion . | . . Treads . | . . Leg . | . . Wheel . | . . Hover . | . . Flight . | . . Utility 2 | . 2 Device 2 | . 2 Storage . | . . Processor . | . . Hackware . | . . Protection . | . . Artifact . | . . Weapon 2 | . 2 Energy Gun 1 | . 1 Energy Cannon 1 | . 1 Ballistic Gun . | . . Ballistic Cannon . | . . Launcher . | . . Special Weapon . | . . Impact Weapon . | . . Slashing Weapon . | . . Piercing Weapon . | . . Special Melee Weapon . | . . Unidentified Prototypes . | . . Parts Lost 4 | . 4 Power . | . . Propulsion . | . . Utility 2 | . 2 Weapon 2 | . 2 Highest Loss Streak 4 | . 4 Average Slot Usage (%) 38 | . 38 Device 20 | . 20 Energy Gun 7 | . 7 Energy Cannon 10 | . 10 Naked Turns 44 | . 44 Heaviest Build 15 | . 15 Greatest Support 3 | 3 3 Greatest Overweight (x) 4 | . 4 Average Overweight (x) 1 | . 1 Largest Inventory Capacity 4 | 4 4 Average Capacity 4 | 4 4 Most Carried 3 | . 3 Average Carried . | . . Final Capacity 4 | 4 4 Final Carried . | . . Class Distribution -------------------- 100% | Mutant Dominant Class ---------------- Mutant | -10/Materials Resources | -11 -10 ----------- Run | Scr Mat Matter Collected 88 | 71 17 Remotely . | . . Salvage Created 12 | . 12 Parts 2 | . 2 Haulers Intercepted . | . . Recyclers Shooed . | . . Parts Field Recycled . | . . Retrieved Matter . | . . Parts Self-Destructed . | . . Prevented . | . . Kills | -11 -10 ------- Run | Scr Mat Combat Hostiles Destroyed . | . . Classes Destroyed 1 | . 1 Watcher 1 | . 1 Best Kill Streak 1 | . 1 Combat Bots Only . | . . Max Kills in Single Turn 1 | . 1 Gunslinging . | . . Exploded . | . . Melee . | . . Uniques/NPCs Destroyed . | . . Combat | -11 -10 -------- Run | Scr Mat Damage Taken 449 | . 449 Core 251 | . 251 Absorbed by Shields . | . . Core Remaining (%) 100 | 100 . Volleys Fired 2 | . 2 Largest 2 | . 2 Hottest 116 | . 116 Shots Fired 4 | . 4 Gun 2 | . 2 Cannon 2 | . 2 Launcher . | . . Special . | . . Kinetic . | . . Thermal 4 | . 4 Explosive . | . . Electromagnetic . | . . Robot Hit Streak 1 | . 1 Robot Miss Streak 1 | . 1 Penetration Max . | . . Secondary Targets . | . . Shots Hit Robots 1 | . 1 Core Hits 5 | . 5 Critical Hits . | . . Critical Kills . | . . Critical Parts Destroyed . | . . Melee Attacks . | . . Impact . | . . Slashing . | . . Piercing . | . . Sneak Attacks . | . . Combat Hostiles . | . . Follow-up Attacks . | . . Damage Inflicted 66 | . 66 Guns 30 | . 30 Cannons 18 | . 18 Explosions . | . . Melee . | . . Ramming 18 | . 18 Kinetic . | . . Thermal 48 | . 48 Explosive . | . . Electromagnetic . | . . Impact . | . . Slashing . | . . Piercing . | . . Highest Corruption . | . . Average Corruption . | . . Corruption Purged . | . . Overload Shots . | . . Overflow Damage . | . . Projectiles . | . . Explosions . | . . Melee . | . . Knockbacks . | . . Impact . | . . Kinetic . | . . Secondary . | . . Self-Inflicted Damage 7 | . 7 Shots . | . . Rammed 9 | . 9 Targets Rammed 9 | . 9 Kicked . | . . Crushed . | . . Highest Temperature 57 | . 57 Average Temperature 34 | . 34 Received Heat Transfer . | . . Siege Activations . | . . Robots Corrupted . | . . Combat Hostiles . | . . Parts Fried . | . . Impact Corruptions . | . . Robots Melted . | . . Combat Hostiles . | . . Parts Melted . | . . Heat Transferred 111 | . 111 Parts Sabotaged . | . . Parts Stolen . | . . Parts Stripped . | . . Power Chain Reactions . | . . Missiles Intercepted . | . . Alert | -11 -10 ------- Run | Scr Mat Peak Influence 37 | . 37 Initial . | . . Average 7 | . 7 Maximum Alert Level . | . . Low Security (%) 100 | 100 100 Level 1 . | . . Level 2 . | . . Level 3 . | . . Level 4 . | . . Level 5 . | . . High Security . | . . Max Security . | . . Squads Dispatched . | . . Investigation . | . . Extermination . | . . Reinforcement . | . . Assault . | . . Garrison . | . . Intercept . | . . Construction Impeded . | . . Haulers Reinforced . | . . Stealth | -11 -10 --------- Run | Scr Mat Distress Signals 1 | . 1 Communications Jammed . | . . Distress Signals . | . . Times Spotted 6 | . 6 Peak Tracking Total 4 | . 4 Tactical Retreats . | . . Traps | -11 -10 ------- Run | Scr Mat Traps Triggered . | . . Indirectly . | . . Trap Hack Attempts . | . . Triggered . | . . Disarmed . | . . Reprogrammed . | . . Reused . | . . Traps Extracted . | . . Installed . | . . Triggered . | . . Machines | -11 -10 ---------- Run | Scr Mat Machines Disabled . | . . Max in Single Turn . | . . Machines Sabotaged . | . . Garrisons Compromised . | . . Overloaded Fab Kills . | . . Fab Network Shutdowns . | . . Hacking | -11 -10 --------- Run | Scr Mat Machines Accessed . | . . Terminals . | . . Fabricators . | . . Repair Stations . | . . Recycling Units . | . . Scanalyzers . | . . Garrison Access . | . . Total Hacks . | . . Successful . | . . Failed . | . . Catastrophic . | . . Database Lockouts . | . . Manual . | . . Terminals . | . . Fabricators . | . . Repair Stations . | . . Recycling Units . | . . Scanalyzers . | . . Garrison Access . | . . Terminal Hacks . | . . Fabricator Hacks . | . . Repair Station Hacks . | . . Recycling Unit Hacks . | . . Scanalyzer . | . . Garrison Access Hacks . | . . Unauthorized Hacks . | . . Terminals . | . . Fabricators . | . . Repair Stations . | . . Recycling Units . | . . Scanalyzers . | . . Garrison Access . | . . Data Cores Recovered . | . . Used . | . . Hacking Detections . | . . Full Trace Events . | . . Feedback Events . | . . Feedback Blocked . | . . Robot Schematics Acquired . | . . Robots Built . | . . Matter . | . . Time . | . . Total Robot Build Rating . | . . Part Schematics Acquired . | . . Parts Built . | . . Matter . | . . Time . | . . Total Part Build Rating . | . . Parts Repaired . | . . Time . | . . Parts Recycled . | . . Recycled Matter . | . . Retrieved Matter . | . . Retrieved Components . | . . Parts Scanalyzed . | . . Part Schematics Acquired . | . . Parts Damaged . | . . Bothacking | -11 -10 ------------ Run | Scr Mat Used RIF Installer . | . . Robots Hacked . | . . Non-combat . | . . Combat . | . . Robot Hacks Applied . | . . Relay Couplers Released . | . . Robots Rewired . | . . Allies Hacked . | . . Hacks Repelled . | . . Allies | -11 -10 -------- Run | Scr Mat Total Allies . | . . Largest Group . | . . Highest-Rated Group . | . . Highest-Rated Ally . | . . Total Orders . | . . Ally Attacks . | . . Total Damage . | . . Kills . | . . Allies Corrupted . | . . Allies Melted . | . . Intel | -11 -10 ------- Run | Scr Mat Robot Analysis Total . | . . Derelict Logs Recovered . | . . Drone Launches . | . . Drone Recoveries . | . . Exploration | -11 -10 ------------- Run | Scr Mat Turns Passed 302 | 20 282 Spaces Moved 259 | 41 218 Core 259 | 41 218 Treads . | . . Legs . | . . Wheels . | . . Hover . | . . Flight . | . . Fastest Speed 50 | 50 50 Average Speed 103 | 50 113 Slowest Speed 250 | 50 250 Overloaded Moves . | . . Propulsion Burnouts . | . . Robots Hopped . | . . Cave-ins Triggered . | . . Exploration Rate (%) 10 | 2 19 Regions Visited 1 Branch Regions . Pre-discovered Areas . | . . Known Exits Taken . | . . Unknown Exits Taken 1 | 1 . Scrap Searched . | . . Spaces Dug . | . . Terrain Destroyed . | . . Melee . | . . Projectile . | . . AOE . | . . Terrain Rammed . | . . Walls Destroyed . | . . Machines Disabled . | . . Actions | -11 -10 --------- Run | Scr Mat Total 281 | 40 241 Wait . | . . Move 258 | 40 218 Hop . | . . Pick Up 6 | . 6 Fast Attach . | . . Attach 4 | . 4 Detach . | . . Swap . | . . Drop 2 | . 2 Fire 2 | . 2 Melee . | . . Ram 9 | . 9 Kick . | . . Crush . | . . Escape Stasis . | . . Rewire . | . . Trap . | . . Miscellaneous . | . . Route ------- -11/Scrapyard -10/Materials History --------- Turn | Location | Event 6 | -11/Scrapyard | Discovered new exit (range 15) 21 | -11/Scrapyard | Entered Materials 275 | -10/Materials | Core integrity fell below 50% 292 | -10/Materials | Core integrity fell below 20% 303 | -10/Materials | Destroyed by S-10 Pest with Light Assault Rifle Last Messages --------------- 00256_ K-01 Serf collects debris. 00261_ Beam Cannon destroyed. 00265_ K-01 Serf cleans the Processing Tank. 00265_ Slammed into S-10 Pest. 00270_ K-01 Serf cleans the Processing Tank. 00276_ Slammed into S-10 Pest. 00279_ K-01 Serf cleans the Processing Tank. 00280_ R-06 Scavenger collects Flight Unit. 00281_ K-01 Serf cleans the Processing Tank. 00282_ Slammed into S-10 Pest. 00282_ Destabilizing: System interference. 00282_ Field Recycling Unit temporarily disabled. 00283_ R-06 Scavenger collects Flight Unit. 00286_ K-01 Serf cleans the Processing Tank. 00286_ Imp. Terrain Scanner destroyed. 00286_ Slammed into S-10 Pest. 00286_ Destabilizing: Core damaged (-5). 00292_ K-01 Serf cleans the Processing Tank. 00294_ Field Recycling Unit destroyed. 00302_ Slammed into S-10 Pest. Map ----- +----------------------------------------------------+ | ????????????????????????????????????????????????? | | ????????????????????????????????????????????????? | | ????????????????????????????????????????????????? | | ????????????????????????????????????????????????? | | ????????????????????????????????????????????????? | | ??????????????????????? ?????????????????????? | | ??????????????????????? ???????????????????? | | ??????????????????????? =!??????????????????? | | ??????????????????????# =!??????????????????? | | ??????????????????????# =!??????????????????? | | ??????????????????????# ??????????????????? | | ??????????????????????# ??????????????????? | | ??????????????????????# ??????????????????? | | ??????????????????????# ??????????????????? | | ??????????????????????# ????????????????? | | ??????????????????????# """"" ??????????????? | | ??????????????????????# """"" #??????????????? | | ???? ????????????????# """"" #??????????????? | | ????? ???????????????# #??????????????? | | ?????? ?????????????# #??????????????? | | ???????? ???????????## """"" #??????????????? | | ?#####?###+###???????# """"" #??????????????? | | # ! =# ######### """"" #??????????????? | | # # #????? ???????? | | # + #### #???????? | | # "T" # k k @s""""" ??????? | | ??"""??# ######### """"" ?????? | | ???????## ##???????# s""""" |!% ?????? | | ????????# #????????# ^ |!! ?????? | | ????????# #????????# |! ?????? | | ????????# #????????####### ^ ?????? | | ??? ?? ?# #??????????????? ?????? | | ????? ??# #??????????????? ??????? | | ???????## ##?????????????? ??????? | | ???????# #??????????????? ???????? | | ???????# #???????????????####+## ???????? | | ???????+ T #??????? ??????????? ?? ???????? | | ??????"# ##??????????????????? #?? ????????? | | ???????# * #?????????????????????#????????????? | | ???????## ##??????????????????????????????????? | | ????????# #?????????"?????????????????????????? | | ? ?? ???# #???????????????????????????????????? | | ????????# #???????????????????????????????????? | | ????##### #???????????????????????????????????? | | ????#! #????????#??????????????????????????? | | #???#!! #???????????????????????????????????? | | #???#[[ #???????????????????????????????????? | | ??#?#[ #???????????????????????????????????? | | ????#!! #???????????????????????????????????? | | ????#! #????#????#?????????????????????????? | +----------------------------------------------------+ Best States ------------- Heat Dissipation 25 Energy Generation 5 Energy Capacity 100 Matter Stores 198 Matter Capacity 300 Sight Range 16 Terrain Scan Range 16 Terrain Scan Density 10 Resistance: KI 20 Resistance: TH 20 Resistance: EX 20 Resistance: EM 20 Resistance: I 20 Resistance: S 20 Resistance: P 20 Evasion (%) 50 Offensive Hacking 10 Item Schematics ----------------- None Robot Schematics ------------------ None Fabricated ------------ Nothing Alien Tech Used ----------------- None Achievements -------------- None Challenges ------------ None Game ------ Seed DroneAlloyPrototype Manual? 0 Play Time 00:07:38 Cumulative 1.6 hours Start 2021.01.14 @ 14:40:02 End 2021.01.14 @ 14:50:37 Sessions 1 Manual Loads 0 Difficulty Adventurer Special Mode None Game No. 8 Rogue 2 Adventurer 6 Explorer 0 Win Type - Total 0 Types 0/0/0/0/0/0/0/0/0 Lore% 0 Gallery% 2 Achievement% 3 Wizard Run 0 Options --------- ASCII 0 Keyboard 0 Movement Mouse Keybinds 0 Fullscreen 2 Font 18/SmallcapsGlow Map View 76x50 Tactical HUD 1 Map Filters NONE Filters NONE Steam 1 RUN: 093271d3-4fb4-4ef8-a4cd-6df07264ba73